fUST/lending_fUST_20240427
["ID","MTS","AMOUNT","RATE_DAILY","PERIOD"]
[323714042,1714185032589,-299.0,0.00016123,2]
[323714043,1714185032598,-719.84911317,0.00017996,2]
[323714044,1714185032608,-273.69486879,0.00017997,2]
[323714045,1714185032617,-427.47798881,0.00018073,2]
[323714046,1714185032633,-315.44748615,0.00018073,2]
[323714047,1714185032645,-1587.38173877,0.00018073,2]
[323714145,1714185037985,-2950.31152297,0.00018073,2]
[323714147,1714185037994,-167.27076469,0.00018725,2]
[323714149,1714185038004,-177.36542612,0.0001877,2]
[323714151,1714185038016,-122.63457388,0.0001877,2]
[323714153,1714185038025,-129.18542612,0.00018771,2]
[323714156,1714185038045,-725.00000007,0.00018771,2]
[323714389,1714185040357,-12178.19530769,0.00018771,2]
[323714391,1714185040488,-2985.41309907,0.00018771,2]
[323714393,1714185040497,-223.69438186,0.000189,2]
[323714395,1714185040506,-97.74904538,0.00018998,2]
[323714788,1714186232119,-526.204949,0.00017999,2]
[323714791,1714186232130,-193.64416417,0.00017999,2]
[323714793,1714186232139,-505.9938737,0.00018,2]
[323714795,1714186232148,-669.16196203,0.000189,2]
[323715185,1714186240279,-591.24913705,0.000189,2]
[323715186,1714186240289,-930.00793133,0.00018997,2]
[323715187,1714186240298,-190.29930118,0.00018998,2]
[323715188,1714186240308,-300.0,0.00018999,2]
[323715190,1714186240317,-300.0,0.00018999,2]
[323715192,1714186240326,-7930.56704238,0.00019,2]
[323715194,1714186240335,-166.9298245,0.00019178,2]
[323715196,1714186240344,-418.378,0.00019513,2]
[323715198,1714186240353,-211.335,0.00019513,2]
[323715200,1714186240362,-150.166,0.00019513,2]
[323715202,1714186240371,-221.844,0.00019513,2]
[323715203,1714186240380,-22.04464502,0.00019753,2]
[323715279,1714186913495,2007.29090263,0.000241,59]
[323715280,1714187349151,-154.84515485,0.00014706,2]
[323715281,1714187349173,-719.84911317,0.00014707,2]
[323715282,1714187349200,-1057.60563749,0.00014708,2]
[323715283,1714187349220,-65.55996679,0.00014709,2]
[323715284,1714187351709,154.84515485,0.00014705,2]
[323715315,1714187432278,-719.84911317,0.00018996,2]
[323715316,1714187432287,-154.84515485,0.00018996,2]
[323715317,1714187432296,-154.84515485,0.00018997,2]
[323715318,1714187432306,-160.0268592,0.00018998,2]
[323715319,1714187432315,-417.0,0.00019589,2]
[323715320,1714187432325,-150.0,0.00019589,2]
[323715321,1714187432334,-3376.38762236,0.00019651,2]
[323715322,1714187432343,-300.0,0.0001974,2]
[323715323,1714187432353,-975.98,0.00019741,3]
[323715324,1714187432362,-487.99,0.00019741,3]
[323715325,1714187432371,-243.99,0.00019741,3]
[323715326,1714187432380,-155.02683523,0.00019749,2]
[323715327,1714187432389,-212.50402228,0.00019749,2]
[323715328,1714187432399,-206.70098438,0.00019749,2]
[323715329,1714187432408,-550.99865186,0.00019749,2]
[323715330,1714187432417,-462.5458359,0.00019749,2]
[323715331,1714187432426,-186.67277618,0.00019749,2]
[323715332,1714187432436,-272.72424736,0.00019749,2]
[323715333,1714187432446,-154.84515485,0.0001975,2]
[323715334,1714187432456,-3056.83459344,0.00019751,2]
[323715335,1714187432465,-239914.96318088,0.00019751,2]
[323715336,1714187432477,-1460.0000001,0.00019751,2]
[323715337,1714187432507,-551.9505191,0.00019751,2]
[323715390,1714187438345,-19921.3439947,0.00019751,2]
[323715639,1714187440460,-3289.49097066,0.00019751,2]
[323715642,1714187440472,-8253.17510528,0.00019751,2]
[323715973,1714187443431,-732.02,0.00019741,3]
[323715974,1714187443441,-155.39117628,0.0001975,2]
[323715975,1714187443450,-1816.73136705,0.00019751,2]
[323716101,1714187446333,-273.76621383,0.0001975,2]
[323716103,1714187446342,-24475.27442388,0.00019751,2]
[323716137,1714188350159,-719.84911317,0.00014704,2]
[323716138,1714188350180,-155.091384,0.00014705,2]
[323716139,1714188350206,-600.65986984,0.00018495,2]
[323716173,1714188632414,-574.69239176,0.00017767,2]
[323716178,1714188632471,-145.15672141,0.00017767,2]
[323716179,1714188632480,-154.84515485,0.00017767,2]
[323716180,1714188632496,-300.0,0.00017767,2]
[323716181,1714188632506,-300.0,0.00017767,2]
[323716182,1714188632516,-730.38126429,0.00017768,2]
[323716184,1714188632526,-4800.30792089,0.00017768,2]
[323716185,1714188632536,-184.97338197,0.00017771,2]
[323716186,1714188632545,-155.06922141,0.0001831,2]
[323716187,1714188632555,-1376.99696826,0.00018495,2]
[323716188,1714188632566,-927.87368973,0.00018758,2]
[323716189,1714188632575,-1059.14417905,0.0001876,2]
[323716190,1714188632586,-160.0268592,0.00018762,2]
[323716191,1714188632595,-59189.32928802,0.00018899,2]
[323716192,1714188632605,-153.6757428,0.000189,2]
[323716193,1714188632615,-153.0,0.000189,2]
[323716194,1714188632624,-840.27406605,0.000189,2]
[323716195,1714188632633,-420.0,0.0001939,2]
[323716196,1714188632643,-1000.0,0.00019541,2]
[323716197,1714188632652,-420.0,0.00019543,2]
[323716198,1714188632661,-156.8134322,0.00019555,2]
[323716199,1714188632670,-150.026,0.00019564,2]
[323716200,1714188632680,-417.639,0.00019564,2]
[323716201,1714188632689,-2000.0,0.00019647,2]
[323716202,1714188632699,-1000.0,0.00019648,2]
[323716203,1714188632708,-153.0,0.000197,2]
[323716204,1714188632718,-153.0,0.000197,2]
[323716205,1714188632727,-153.0,0.000197,2]
[323716206,1714188632736,-569.32,0.0001974,3]
[323716207,1714188632749,-438.42096154,0.00019745,2]
[323716208,1714188632758,-477.10367671,0.00019745,2]
[323716209,1714188632767,-1356.61298061,0.00019745,2]
[323716210,1714188632776,-155.45154043,0.00019745,2]
[323716211,1714188632785,-208.98984534,0.00019745,2]
[323716212,1714188632794,-472.40535399,0.00019745,2]
[323716213,1714188632802,-500.0,0.00019745,2]
[323716214,1714188632812,-500.0,0.00019745,2]
[323716215,1714188632821,-422.037697,0.00019745,2]
[323716216,1714188632833,-77.962303,0.00019745,2]
[323716217,1714188632842,-500.0,0.00019745,2]
[323716218,1714188632851,-500.0,0.00019745,2]
[323716219,1714188632860,-500.0,0.00019745,2]
[323716220,1714188632869,-500.0,0.00019745,2]
[323716221,1714188632878,-500.0,0.00019745,2]
[323716222,1714188632887,-500.0,0.00019745,2]
[323716223,1714188632896,-500.0,0.00019745,2]
[323716224,1714188632905,-500.0,0.00019745,2]
[323716225,1714188632914,-500.0,0.00019745,2]
[323716226,1714188632923,-500.0,0.00019745,2]
[323716227,1714188632933,-500.0,0.00019745,2]
[323716228,1714188632942,-500.0,0.00019745,2]
[323716229,1714188632953,-292.43068509,0.00019745,2]
[323716230,1714188632962,-155.11634867,0.00019746,2]
[323716231,1714188632971,-154.99645394,0.00019746,2]
[323716232,1714188632980,-157.0897005,0.00019747,2]
[323716233,1714188632990,-1698.19569135,0.00019747,2]
[323716234,1714188632999,-1400.62158162,0.00019749,2]
[323716235,1714188633009,-155.96930408,0.00019749,2]
[323716236,1714188633018,-155.04340966,0.00019749,2]
[323716237,1714188633028,-155.13633401,0.00019749,2]
[323716238,1714188633037,-1150.87706624,0.00019749,2]
[323716239,1714188633046,-599.33979219,0.00019749,2]
[323716240,1714188633055,-472.33021332,0.00019749,2]
[323716241,1714188633064,-180.64115116,0.00019749,2]
[323716242,1714188633074,-320.33714495,0.00019749,2]
[323716243,1714188633083,-154.84515485,0.0001975,2]
[323716244,1714188633093,-19422.25196815,0.0001975,2]
[323716280,1714188638565,-500.0,0.00019178,2]
[323716281,1714188638575,-500.0,0.00019178,2]
[323716284,1714188638586,-506.21726214,0.00019178,2]
[323716286,1714188638596,-4806.54717482,0.0001975,2]
[323716289,1714188638619,-972.0795421,0.0001975,2]
[323716620,1714188641737,-284.66,0.0001974,3]
[323716622,1714188641749,-197757.53957859,0.0001975,2]
[323716625,1714188641770,-3538.32567722,0.0001975,2]
[323716773,1714188643632,-519.09851852,0.0001975,2]
[323716774,1714188643644,-584.08465978,0.0001975,2]
[323716848,1714189546107,-153.5447658,0.00014588,2]
[323716849,1714189745089,-187.38950934,0.00014576,2]
[323716850,1714189745108,-730.38126429,0.00014576,2]
[323716851,1714189745127,-187.38950934,0.00014576,2]
[323716852,1714189745147,-308.65492652,0.00014577,2]
[323716853,1714189745170,-1491.10873787,0.00014578,2]
[323716854,1714189745190,-719.84911317,0.00014579,2]
[323716855,1714189745209,-154.82968734,0.00014625,2]
[323716856,1714189745229,-170.5546109,0.00014626,2]
[323716857,1714189745249,-300.0,0.00014728,2]
[323716858,1714189745268,-628.43790721,0.00015,2]
[323716859,1714189745287,-312.79447259,0.00015,2]
[323716860,1714189745306,-56.78555019,0.00015,2]
[323716861,1714189747115,-100.34812805,0.00015,2]
[323716862,1714189747135,-420.0,0.00016201,2]
[323716863,1714189747154,-90.09926563,0.00016438,2]
[323716981,1714189840816,-246.80827509,0.00016438,2]
[323716983,1714189840827,-154.84515485,0.00018305,2]
[323716985,1714189840836,-154.86062544,0.0001831,2]
[323716986,1714189840845,-220.306529,0.00018515,2]
[323716987,1714189840854,-187.38950934,0.00018759,2]
[323716989,1714189840863,-719.84911317,0.0001876,2]
[323716991,1714189840872,-154.82968734,0.0001876,2]
[323716992,1714189840881,-927.96343149,0.00018761,2]
[323716993,1714189840890,-560.1827107,0.000189,2]
[323716994,1714189840900,-154.84515485,0.00018903,2]
[323716995,1714189840909,-300.0,0.00018999,2]
[323716996,1714189840918,-300.0,0.00018999,2]
[323716997,1714189840928,-417.0,0.00019549,2]
[323716998,1714189840937,-150.0,0.00019549,2]
[323716999,1714189840946,-167.66824752,0.00019653,2]
[323717000,1714189840955,-7930.56704238,0.00019699,2]
[323717001,1714189840964,-2000.0,0.000197,2]
[323717002,1714189840974,-1000.0,0.00019739,2]
[323717003,1714189840983,-1104.74056496,0.00019751,2]
[323717004,1714189840992,-2094.09146775,0.00019753,2]
[323717005,1714189841002,-1000.0,0.00019774,2]
[323717006,1714189841011,-513.5200945,0.00019798,2]
[323717007,1714189841020,-44444.0,0.00019799,2]
[323717008,1714189841030,-500.0,0.00019799,2]
[323717009,1714189841039,-500.0,0.00019799,2]
[323717010,1714189841138,-500.0,0.00019799,2]
[323717011,1714189841147,-1000.0,0.0001983,2]
[323717012,1714189841156,-1000.0,0.00019834,2]
[323717013,1714189841165,-520.68310617,0.00019834,2]
[323717014,1714189841174,-1000.0,0.00019836,2]
[323717015,1714189841183,-1000.0,0.00019857,2]
[323717016,1714189841191,-1000.0,0.00019872,2]
[323717017,1714189841200,-630.00375959,0.00019876,2]
[323717018,1714189841210,-1000.0,0.00019884,2]
[323717019,1714189841219,-1000.0,0.00019885,2]
[323717020,1714189841228,-426.99,0.00019888,3]
[323717021,1714189841237,-1000.0,0.00019889,2]
[323717022,1714189841248,-153.0,0.0001989,2]
[323717023,1714189841257,-153.0,0.0001989,2]
[323717024,1714189841266,-153.0,0.0001989,2]
[323717025,1714189841276,-153.0,0.0001989,2]
[323717026,1714189841285,-153.0,0.0001989,2]
[323717027,1714189841294,-264.0323399,0.0001989,2]
[323717028,1714189841303,-153.0,0.0001989,2]
[323717029,1714189841313,-153.0,0.0001989,2]
[323717030,1714189841322,-153.0,0.0001989,2]
[323717031,1714189841331,-153.0,0.0001989,2]
[323717032,1714189841340,-153.0,0.0001989,2]
[323717033,1714189841349,-346.0160453,0.0001989,2]
[323717034,1714189841358,-178.98790681,0.00019896,2]
[323717035,1714189841368,-212.02643912,0.00019896,2]
[323717036,1714189841377,-1093.38777696,0.00019896,2]
[323717037,1714189841386,-155.09738902,0.00019896,2]
[323717038,1714189841394,-2105.10147492,0.00019896,2]
[323717039,1714189841404,-284.49962201,0.00019896,2]
[323717040,1714189841413,-154.8915759,0.00019896,2]
[323717041,1714189841422,-940.9545276,0.00019896,2]
[323717042,1714189841431,-155.16347906,0.00019896,2]
[323717043,1714189841440,-158.7818877,0.00019896,2]
[323717044,1714189841449,-2789.7514541,0.00019896,2]
[323717045,1714189841458,-247.45608449,0.00019896,2]
[323717046,1714189841468,-360.18614913,0.00019896,2]
[323717047,1714189841477,-362.96593095,0.00019896,2]
[323717048,1714189841486,-347.21185163,0.00019896,2]
[323717049,1714189841496,-1882.61116434,0.00019896,2]
[323717050,1714189841505,-264.66882563,0.00019896,2]
[323717051,1714189841515,-206.09782636,0.00019896,2]
[323717052,1714189841524,-154.86062544,0.00019896,2]
[323717053,1714189841533,-1680.63721774,0.00019896,2]
[323717054,1714189841543,-273.38316641,0.00019896,2]
[323717055,1714189841553,-203.59928326,0.00019896,2]
[323717056,1714189841563,-301.16119284,0.00019896,2]
[323717057,1714189841572,-239.94970557,0.00019896,2]
[323717058,1714189841581,-285.18762042,0.00019896,2]
[323717059,1714189841591,-154.86290392,0.00019896,2]
[323717060,1714189841601,-155.14232645,0.00019896,2]
[323717061,1714189841610,-575.33648472,0.00019896,2]
[323717062,1714189841620,-288.17072808,0.00019896,2]
[323717063,1714189841629,-259.33323711,0.00019896,2]
[323717064,1714189841639,-157.73401458,0.00019896,2]
[323717065,1714189841649,-385.38242563,0.00019896,2]
[323717066,1714189841659,-155.10500961,0.00019896,2]
[323717067,1714189841668,-943.08964218,0.00019897,2]
[323717068,1714189841678,-202.42723428,0.00019897,2]
[323717069,1714189841688,-53564.27787538,0.00019898,2]
[323717070,1714189841704,-523.63700009,0.00019898,2]
[323717158,1714189846598,-315.44,0.00019699,2]
[323717159,1714189846654,-1684.56,0.00019699,2]
[323717160,1714189846663,-213.49,0.00019888,3]
[323717161,1714189846672,-327974.81437937,0.00019898,2]
[323717162,1714189846681,-32335.77124321,0.00019899,2]
[323717163,1714189846691,-1007.66457868,0.00019899,2]
[323717164,1714189846700,-587.0,0.000199,2]
[323717165,1714189846709,-316.35769768,0.00019902,2]
[323717166,1714189846718,-1000.0,0.00019916,2]
[323717167,1714189846817,-1000.0,0.00019916,2]
[323717168,1714189846829,-1000.0,0.00019931,2]
[323717169,1714189846837,-1000.0,0.00019942,2]
[323717170,1714189846847,-1000.0,0.00019977,2]
[323717171,1714189846858,-1709.84823484,0.00019996,2]
[323717172,1714189846867,-510.31415295,0.00019997,2]
[323717173,1714189846876,-454.12721237,0.00019997,2]
[323717174,1714189846886,-6563.05357861,0.00019997,2]
[323717175,1714189846895,-527.8280914,0.00019997,2]
[323717176,1714189846905,-330.07973125,0.00019997,2]
[323717177,1714189846915,-1342.32756355,0.00019998,2]
[323717178,1714189846924,-7382.77454484,0.0002,2]
[323717179,1714189846934,-67375.45256163,0.0002,2]
[323717180,1714189846943,-241.56503296,0.0002,2]
[323717181,1714189846953,-330.71616804,0.0002,2]
[323717182,1714189846962,-107014.14353382,0.0002,2]
[323717183,1714189846971,-580.0,0.0002,2]
[323717184,1714189846981,-381.0,0.0002,2]
[323717185,1714189846991,-153.0,0.0002,2]
[323717186,1714189847002,-151.0,0.0002,2]
[323717187,1714189847012,-151.0,0.0002,2]
[323717188,1714189847021,-151.0,0.0002,2]
[323717189,1714189847030,-151.0,0.0002,2]
[323717190,1714189847040,-151.0,0.0002,2]
[323717191,1714189847049,-151.0,0.0002,2]
[323717192,1714189847058,-151.343684,0.0002,2]
[323717193,1714189847068,-151.0,0.0002,2]
[323717194,1714189847077,-151.0,0.0002,2]
[323717195,1714189847087,-151.0,0.0002,2]
[323717196,1714189847096,-151.0,0.0002,2]
[323717197,1714189847105,-322.753185,0.0002,2]
[323717198,1714189847115,-322.753185,0.0002,2]
[323717199,1714189847125,-322.753185,0.0002,2]
[323717200,1714189847134,-322.753185,0.0002,2]
[323717201,1714189847144,-322.753185,0.0002,2]
[323717202,1714189847153,-322.753185,0.0002,2]
[323717203,1714189847162,-151.0,0.0002,2]
[323717204,1714189847172,-151.0,0.0002,2]
[323717205,1714189847181,-151.0,0.0002,2]
[323717206,1714189847190,-151.0,0.0002,2]
[323717207,1714189847200,-151.0,0.0002,2]
[323717208,1714189847209,-151.0,0.0002,2]
[323717209,1714189847218,-151.0,0.0002,2]
[323717210,1714189847228,-151.0,0.0002,2]
[323717211,1714189847236,-151.0,0.0002,2]
[323717212,1714189847246,-151.0,0.0002,2]
[323717213,1714189847255,-151.0,0.0002,2]
[323717214,1714189847264,-151.0,0.0002,2]
[323717215,1714189847274,-151.0,0.0002,2]
[323717216,1714189847283,-151.0,0.0002,2]
[323717217,1714189847292,-151.0,0.0002,2]
[323717218,1714189847301,-156.189177,0.0002,2]
[323717219,1714189847310,-200.0,0.0002,2]
[323717220,1714189847319,-151.609285,0.0002,2]
[323717221,1714189847328,-151.0,0.0002,2]
[323717222,1714189847337,-151.0,0.0002,2]
[323717223,1714189847346,-151.0,0.0002,2]
[323717224,1714189847355,-151.0,0.0002,2]
[323717225,1714189847371,-151.879995,0.0002,2]
[323717226,1714189847391,-1463.635139,0.0002,2]
[323717227,1714189847407,-1463.635139,0.0002,2]
[323717228,1714189847426,-1463.635139,0.0002,2]
[323717229,1714189847442,-1463.635139,0.0002,2]
[323717230,1714189847459,-1463.635139,0.0002,2]
[323717231,1714189847478,-1463.635139,0.0002,2]
[323717232,1714189847493,-153.53258,0.0002,2]
[323717233,1714189847513,-203.050478,0.0002,2]
[323717234,1714189847529,-203.050478,0.0002,2]
[323717235,1714189847549,-159.351281,0.0002,2]
[323717236,1714189847571,-169.304085,0.0002,2]
[323717237,1714189847586,-151.0,0.0002,2]
[323717238,1714189847601,-152.048473,0.0002,2]
[323717239,1714189847618,-927.848482,0.0002,2]
[323717240,1714189847632,-927.848482,0.0002,2]
[323717241,1714189847647,-927.848482,0.0002,2]
[323717242,1714189847663,-927.848482,0.0002,2]
[323717243,1714189847678,-215.301323,0.0002,2]
[323717244,1714189847691,-215.301323,0.0002,2]
[323717245,1714189847706,-215.301323,0.0002,2]
[323717246,1714189847720,-215.301323,0.0002,2]
[323717247,1714189847734,-226.818667,0.0002,2]
[323717248,1714189847750,-226.818667,0.0002,2]
[323717249,1714189847765,-226.818667,0.0002,2]
[323717250,1714189847780,-226.818667,0.0002,2]
[323717251,1714189847793,-152.220386,0.0002,2]
[323717252,1714189847808,-1003.571697,0.0002,2]
[323717253,1714189847822,-151.0,0.0002,2]
[323717254,1714189847837,-151.0,0.0002,2]
[323717255,1714189847851,-151.0,0.0002,2]
[323717256,1714189847866,-183.29704,0.0002,2]
[323717257,1714189847880,-151.0,0.0002,2]
[323717258,1714189847893,-151.0,0.0002,2]
[323717259,1714189847908,-151.0,0.0002,2]
[323717260,1714189847922,-154.430283,0.0002,2]
[323717261,1714189847935,-151.709079,0.0002,2]
[323717262,1714189847949,-296.651016,0.0002,2]
[323717263,1714189847962,-296.651016,0.0002,2]
[323717264,1714189847976,-296.651016,0.0002,2]
[323717265,1714189847990,-296.651016,0.0002,2]
[323717266,1714189848006,-524.751574,0.0002,2]
[323717267,1714189848020,-1298.71688,0.0002,2]
[323717268,1714189848037,-524.751574,0.0002,2]
[323717269,1714189848050,-1298.71688,0.0002,2]
[323717270,1714189848064,-524.751574,0.0002,2]
[323717271,1714189848078,-524.751574,0.0002,2]
[323717272,1714189848092,-1298.71688,0.0002,2]
[323717273,1714189848106,-1298.71688,0.0002,2]
[323717274,1714189848122,-151.0,0.0002,2]
[323717275,1714189848136,-151.0,0.0002,2]
[323717276,1714189848150,-460.921047,0.0002,2]
[323717277,1714189848165,-460.921047,0.0002,2]
[323717278,1714189848178,-460.921047,0.0002,2]
[323717279,1714189848187,-460.921047,0.0002,2]
[323717280,1714189848196,-1000.0,0.00020073,2]
[323717281,1714189848205,-1000.0,0.00020078,2]
[323717282,1714189848214,-300.0,0.00020166,2]
[323717283,1714189848332,-177.75,0.000203,2]
[323717284,1714189848390,-494.0,0.000203,2]
[323717285,1714189848400,-1617.5633,0.000204,2]
[323717286,1714189848409,-420.0,0.00020709,2]
[323717287,1714189848418,-420.0,0.00020899,2]
[323717288,1714189848428,-236.4080485,0.00021,2]
[323717289,1714189848437,-197.13276622,0.00021,2]
[323717290,1714189848446,-10004.04183115,0.00021,2]
[323717291,1714189848455,-39049.28545521,0.00021,2]
[323717292,1714189848464,-151.0,0.00021,2]
[323717293,1714189848472,-151.0,0.00021,2]
[323717294,1714189848481,-293.687058,0.00021,2]
[323717295,1714189848490,-151.0,0.00021,2]
[323717296,1714189848501,-322.753185,0.00021,2]
[323717297,1714189848510,-322.753185,0.00021,2]
[323717298,1714189848519,-151.0,0.00021,2]
[323717299,1714189848529,-151.0,0.00021,2]
[323717300,1714189848540,-151.0,0.00021,2]
[323717301,1714189848550,-216.997591,0.00021,2]
[323717302,1714189848563,-237.274882,0.00021,2]
[323717303,1714189848572,-151.0,0.00021,2]
[323717304,1714189848581,-151.0,0.00021,2]
[323717305,1714189848590,-151.0,0.00021,2]
[323717306,1714189848601,-1463.635139,0.00021,2]
[323717307,1714189848609,-1463.635139,0.00021,2]
[323717308,1714189848619,-203.050478,0.00021,2]
[323717309,1714189848631,-927.848482,0.00021,2]
[323717310,1714189848640,-927.848482,0.00021,2]
[323717311,1714189848650,-215.301323,0.00021,2]
[323717312,1714189848659,-215.301323,0.00021,2]
[323717313,1714189848668,-226.818667,0.00021,2]
[323717314,1714189848678,-226.818667,0.00021,2]
[323717315,1714189848687,-151.0,0.00021,2]
[323717316,1714189848696,-151.0,0.00021,2]
[323717317,1714189848706,-296.651016,0.00021,2]
[323717318,1714189848715,-296.651016,0.00021,2]
[323717319,1714189848726,-524.751574,0.00021,2]
[323717320,1714189848735,-1298.71688,0.00021,2]
[323717321,1714189848746,-524.751574,0.00021,2]
[323717322,1714189848755,-1298.71688,0.00021,2]
[323717323,1714189848764,-151.0,0.00021,2]
[323717324,1714189848773,-460.921047,0.00021,2]
[323717325,1714189848782,-460.921047,0.00021,2]
[323717326,1714189848791,-853.98,0.00021258,3]
[323717327,1714189848800,-426.98,0.00021258,3]
[323717328,1714189848809,-977.8,0.0002145,2]
[323717329,1714189848818,-167.66824748,0.00021606,2]
[323717330,1714189848827,-10000.0,0.00021918,2]
[323717331,1714189848836,-612.8895489,0.00021918,2]
[323717332,1714189848845,-974.045545,0.00021918,2]
[323717333,1714189848854,-974.045545,0.00021918,2]
[323717334,1714189848864,-974.045545,0.00021918,2]
[323717335,1714189848873,-974.045545,0.00021918,2]
[323717336,1714189848882,-974.045545,0.00021918,2]
[323717337,1714189848891,-974.045545,0.00021918,2]
[323717338,1714189848900,-151.0,0.00021918,2]
[323717339,1714189848909,-151.0,0.00021918,2]
[323717340,1714189848918,-322.753185,0.00021918,2]
[323717341,1714189848927,-322.753185,0.00021918,2]
[323717342,1714189848936,-151.0,0.00021918,2]
[323717343,1714189848945,-151.0,0.00021918,2]
[323717344,1714189848955,-151.0,0.00021918,2]
[323717345,1714189848964,-151.0,0.00021918,2]
[323717346,1714189848974,-1463.635139,0.00021918,2]
[323717347,1714189848983,-1463.635139,0.00021918,2]
[323717348,1714189848992,-203.050478,0.00021918,2]
[323717349,1714189849002,-927.848482,0.00021918,2]
[323717350,1714189849012,-927.848482,0.00021918,2]
[323717351,1714189849021,-215.301323,0.00021918,2]
[323717352,1714189849030,-215.301323,0.00021918,2]
[323717353,1714189849039,-226.818667,0.00021918,2]
[323717354,1714189849048,-226.818667,0.00021918,2]
[323717355,1714189849057,-974.045545,0.00021918,2]
[323717356,1714189849066,-974.045545,0.00021918,2]
[323717357,1714189849075,-151.0,0.00021918,2]
[323717358,1714189849084,-151.0,0.00021918,2]
[323717359,1714189849094,-296.651016,0.00021918,2]
[323717360,1714189849103,-296.651016,0.00021918,2]
[323717361,1714189849111,-524.751574,0.00021918,2]
[323717362,1714189849120,-1298.71688,0.00021918,2]
[323717363,1714189849129,-524.751574,0.00021918,2]
[323717364,1714189849139,-1298.71688,0.00021918,2]
[323717365,1714189849148,-151.0,0.00021918,2]
[323717366,1714189849157,-460.921047,0.00021918,2]
[323717367,1714189849166,-460.921047,0.00021918,2]
[323717368,1714189849175,-153.0,0.00022192,2]
[323717369,1714189849184,-153.0,0.00022192,2]
[323717370,1714189849193,-153.0,0.00022192,2]
[323717371,1714189849202,-153.0,0.00022192,2]
[323717372,1714189849211,-417.0,0.00022549,2]
[323717373,1714189849221,-150.0,0.00022549,2]
[323717374,1714189849230,-587.0,0.00022573,2]
[323717375,1714189849239,-587.0,0.00022989,2]
[323717376,1714189849248,-713.6959632,0.00023,2]
[323717377,1714189849257,-167.66824748,0.00023559,2]
[323717378,1714189849266,-977.8,0.0002366,2]
[323717379,1714189849276,-560.1827107,0.000239,2]
[323717380,1714189849285,-5006.67062861,0.00024,2]
[323717381,1714189849294,-151.0,0.00024,2]
[323717382,1714189849302,-1463.635139,0.00024,2]
[323717383,1714189849311,-1463.635139,0.00024,2]
[323717384,1714189849320,-203.050478,0.00024,2]
[323717385,1714189849329,-927.848482,0.00024,2]
[323717386,1714189849338,-927.848482,0.00024,2]
[323717387,1714189849348,-215.301323,0.00024,2]
[323717388,1714189849357,-215.301323,0.00024,2]
[323717389,1714189849366,-226.818667,0.00024,2]
[323717390,1714189849375,-226.818667,0.00024,2]
[323717391,1714189849385,-974.045545,0.00024,2]
[323717392,1714189849394,-974.045545,0.00024,2]
[323717393,1714189849403,-151.0,0.00024,2]
[323717394,1714189849413,-151.0,0.00024,2]
[323717395,1714189849422,-296.651016,0.00024,2]
[323717396,1714189849431,-296.651016,0.00024,2]
[323717397,1714189849440,-524.751574,0.00024,2]
[323717398,1714189849449,-1298.71688,0.00024,2]
[323717399,1714189849458,-524.751574,0.00024,2]
[323717400,1714189849467,-1298.71688,0.00024,2]
[323717401,1714189849476,-151.0,0.00024,2]
[323717402,1714189849485,-460.921047,0.00024,2]
[323717403,1714189849494,-460.921047,0.00024,2]
[323717404,1714189849504,-154.86062544,0.000241,2]
[323717405,1714189849513,-1563.48070757,0.000241,2]
[323717406,1714189849523,-1000.0,0.000241,2]